fUST/lending_fUST_20240619
["ID","MTS","AMOUNT","RATE_DAILY","PERIOD"]
[329840345,1718736646048,-500.0,0.00018356,2]
[329840346,1718736646057,-2318.12,0.00018356,2]
[329840347,1718736646066,-8317.39,0.00018356,2]
[329840348,1718736646076,-500.0,0.00018356,2]
[329840349,1718736646085,-540.36,0.00018356,2]
[329840350,1718736646095,-4970.02,0.00018356,2]
[329840351,1718736646104,-650.55,0.00018356,2]
[329840352,1718736646114,-1817.24,0.00018356,2]
[329840353,1718736646124,-500.0,0.00018356,2]
[329840354,1718736646133,-1058.09,0.00018356,2]
[329840355,1718736646143,-500.0,0.00018356,2]
[329840356,1718736646153,-577.92,0.00018356,2]
[329840357,1718736646163,-1045.51,0.00018356,2]
[329840358,1718736646173,-600.60257261,0.00018356,2]
[329840359,1718736646186,-285.38742739,0.00018356,2]
[329840360,1718736646195,-1197.35,0.00018629,2]
[329840361,1718736646204,-500.0,0.0001863,2]
[329840362,1718736646213,-500.0,0.0001863,2]
[329840363,1718736646223,-500.0,0.0001863,2]
[329840364,1718736646233,-2318.12,0.0001863,2]
[329840365,1718736646242,-8317.39,0.0001863,2]
[329840366,1718736646252,-500.0,0.0001863,2]
[329840367,1718736646262,-4970.02,0.0001863,2]
[329840368,1718736646271,-650.55,0.0001863,2]
[329840369,1718736646280,-1817.24,0.0001863,2]
[329840370,1718736646292,-500.0,0.0001863,2]
[329840371,1718736646301,-1058.09,0.0001863,2]
[329840373,1718736646311,-500.0,0.0001863,2]
[329840375,1718736646320,-1045.51,0.0001863,2]
[329840377,1718736646330,-885.99,0.0001863,2]
[329840378,1718736646340,-171.6105531,0.000189,2]
[329840379,1718736646348,-500.0,0.00018902,2]
[329840380,1718736646356,-1197.35,0.00018903,2]
[329840381,1718736646365,-151.0,0.00018904,2]
[329840382,1718736646374,-151.0,0.00018904,2]
[329840383,1718736646384,-151.0,0.00018904,2]
[329840384,1718736646393,-500.0,0.00018904,2]
[329840385,1718736646403,-151.0,0.00018904,2]
[329840386,1718736646413,-151.0,0.00018904,2]
[329840387,1718736646422,-500.0,0.00018904,2]
[329840388,1718736646432,-500.0,0.00018904,2]
[329840389,1718736646441,-220.83127,0.00018904,2]
[329840390,1718736646455,-151.0,0.00018904,2]
[329840391,1718736646464,-157.500712,0.00018904,2]
[329840392,1718736646473,-2318.12,0.00018904,2]
[329840393,1718736646483,-151.0,0.00018904,2]
[329840394,1718736646493,-8317.39,0.00018904,2]
[329840395,1718736646502,-500.0,0.00018904,2]
[329840396,1718736646511,-4970.02,0.00018904,2]
[329840397,1718736646521,-650.55,0.00018904,2]
[329840398,1718736646532,-236.696994,0.00018904,2]
[329840399,1718736646543,-1817.24,0.00018904,2]
[329840400,1718736646553,-298.46,0.00018904,2]
[329840401,1718736646562,-1058.09,0.00018904,2]
[329840402,1718736646572,-500.0,0.00018904,2]
[329840403,1718736646581,-1045.51,0.00018904,2]
[329840404,1718736646591,-885.99,0.00018904,2]
[329840405,1718736646599,-361.649024,0.00019096,2]
[329840406,1718736646609,-1197.35,0.00019177,2]
[329840407,1718736646618,-220.15687434,0.00019177,2]
[329840408,1718736646628,-151.0,0.00019178,2]
[329840409,1718736646637,-500.0,0.00019178,2]
[329840410,1718736646646,-336.45778827,0.00019178,2]
[329840411,1718736646655,-500.0,0.00019178,2]
[329840412,1718736646664,-2318.12,0.00019178,2]
[329840413,1718736646673,-8317.39,0.00019178,2]
[329840414,1718736646682,-500.0,0.00019178,2]
[329840415,1718736646691,-4970.02,0.00019178,2]
[329840416,1718736646700,-650.55,0.00019178,2]
[329840417,1718736646710,-1817.24,0.00019178,2]
[329840418,1718736646719,-1058.09,0.00019178,2]
[329840419,1718736646728,-500.0,0.00019178,2]
[329840420,1718736646737,-1045.51,0.00019178,2]
[329840421,1718736646746,-885.99,0.00019178,2]
[329840422,1718736646755,-165.527653,0.00019178,2]
[329840423,1718736646764,-1197.35,0.00019451,2]
[329840424,1718736646773,-500.0,0.00019452,2]
[329840425,1718736646782,-500.0,0.00019452,2]
[329840426,1718736646792,-2318.12,0.00019452,2]
[329840427,1718736646802,-8317.39,0.00019452,2]
[329840428,1718736646811,-500.0,0.00019452,2]
[329840429,1718736646821,-4970.02,0.00019452,2]
[329840431,1718736646830,-650.55,0.00019452,2]
[329840433,1718736646839,-1817.24,0.00019452,2]
[329840435,1718736646848,-1058.09,0.00019452,2]
[329840436,1718736646857,-351.12,0.00019452,2]
[329840438,1718736646866,-1045.51,0.00019452,2]
[329840441,1718736646876,-885.99,0.00019452,2]
[329840442,1718736646885,-151.0,0.00019534,2]
[329840443,1718736646895,-151.0,0.00019534,2]
[329840444,1718736646904,-500.0,0.00019534,2]
[329840445,1718736646914,-1751.0,0.00019534,2]
[329840446,1718736646923,-1197.35,0.00019725,2]
[329840447,1718736646933,-151.0,0.00019726,2]
[329840448,1718736646942,-500.0,0.00019726,2]
[329840449,1718736646951,-500.0,0.00019726,2]
[329840450,1718736646960,-2318.12,0.00019726,2]
[329840452,1718736646970,-8317.39,0.00019726,2]
[329840453,1718736646979,-500.0,0.00019726,2]
[329840455,1718736646988,-4970.02,0.00019726,2]
[329840457,1718736646998,-650.55,0.00019726,2]
[329840458,1718736647007,-1817.24,0.00019726,2]
[329840459,1718736647016,-1058.09,0.00019726,2]
[329840460,1718736647026,-1045.51,0.00019726,2]
[329840461,1718736647035,-885.99,0.00019726,2]
[329840462,1718736647046,-5271.96670823,0.00019817,2]
[329840463,1718736647055,-795.3,0.00019883,2]
[329840464,1718736647064,-21465.82579029,0.00019985,2]
[329840465,1718736647077,-1167.25256915,0.00019985,2]
[329840466,1718736647089,-508.635,0.00019985,2]
[329840467,1718736647100,-2945.29375419,0.00019985,2]
[329840470,1718736647303,-500.0,0.0001726,2]
[329840472,1718736647313,-500.0,0.0001726,2]
[329840474,1718736647322,-44.06506728,0.00017534,2]
[329840475,1718736647333,-455.93493272,0.00017534,2]
[329840476,1718736647343,-500.0,0.00017534,2]
[329840478,1718736647352,-500.0,0.00017808,2]
[329840480,1718736647362,-480.16665875,0.00017808,2]
[329840482,1718736647371,-500.0,0.00018082,2]
[329840483,1718736647380,-500.0,0.00018356,2]
[329840484,1718736647390,-500.0,0.0001863,2]
[329840485,1718736647400,-500.0,0.00018904,2]
[329840486,1718736647409,-500.0,0.00019178,2]
[329840487,1718736647418,-500.0,0.00019452,2]
[329840488,1718736647427,-231.3,0.00019534,2]
[329840489,1718736647442,-500.0,0.00019726,2]
[329840490,1718736647451,-659.16615187,0.00019985,2]
[329840491,1718736647462,-12759.66702071,0.00019985,2]
[329840492,1718736647474,-14917.0854552,0.00019985,2]
[329840493,1718736647487,-3451.05581931,0.00019985,2]
[329840494,1718736647496,-151.0,0.00019985,2]
[329840495,1718736647505,-187.85682,0.00019985,2]
[329840496,1718736647515,-157.00483935,0.00019998,2]
[329840497,1718736647527,-1197.35,0.00019999,2]
[329840498,1718736647536,-3386.38171597,0.0002,2]
[329840499,1718736647775,-151.0,0.00018356,2]
[329840500,1718736647785,-795.34668806,0.0002,2]
[329840508,1718736744027,1333.36542751,9.999e-05,2]
[329840509,1718736747516,672.17793927,9.999e-05,2]
[329840510,1718736747557,672.42171476,9.999e-05,2]
[329840525,1718737550119,-192.1236118,0.00015075,2]
[329840526,1718737627127,-57.8763882,0.00015075,2]
[329840527,1718737627148,-228.301933,0.00015096,2]
[329840528,1718737627168,-244.1709677,0.00015113,2]
[329840529,1718737627189,-201.8649434,0.00015253,2]
[329840530,1718737627210,-235.12669385,0.00016338,2]
[329840531,1718737627231,-69.34671646,0.00016338,2]
[329840532,1718737628109,-859.34884098,0.00016338,2]
[329840533,1718737628135,-300.0,0.00016435,2]
[329840534,1718737628156,-301.55889059,0.00016436,2]
[329840535,1718737628176,-176.49693239,0.00016436,2]
[329840536,1718737628197,-946.56236145,0.00016436,2]
[329840537,1718737628218,-159.22422045,0.00016436,2]
[329840538,1718737628238,-167.53346069,0.00016436,2]
[329840539,1718737628258,-500.0,0.00016438,2]
[329840540,1718737628279,-250.0,0.00016438,2]
[329840541,1718737628299,-195.73704327,0.00016438,2]
[329840542,1718737788567,6687.67402723,0.00015575,2]
[329840543,1718737788593,182.9592721,0.00015575,2]
[329840544,1718737788617,175.3108034,0.00015575,2]
[329840545,1718737788638,5311.20695347,0.00015575,2]
[329840559,1718737832631,-254.19680781,0.00016338,2]
[329840562,1718737832640,-161.53344219,0.00016338,2]
[329840565,1718737832652,-651.07517057,0.00016338,2]
[329840568,1718737832661,-687.11689634,0.00016434,2]
[329840570,1718737832671,-300.0,0.00016435,2]
[329840571,1718737832680,-125.007927,0.00016436,2]
[329840581,1718737832759,-360.17002976,0.00016436,2]
[329840635,1718737838458,-238.00892246,0.00016436,2]
[329840636,1718737838468,-10553.9474558,0.00016436,2]
[329840638,1718737838479,-383.12732624,0.00016437,2]
[329840640,1718737838489,-1165.78518178,0.00016437,2]
[329840642,1718737838498,-500.0,0.00016438,2]
[329840644,1718737838508,-500.0,0.00016438,2]
[329840646,1718737838517,-500.0,0.00016438,2]
[329840647,1718737838526,-547.68897216,0.00016438,2]
[329840649,1718737838536,-205.71220092,0.00016438,2]
[329840651,1718737838550,-500.0,0.00016438,2]
[329840653,1718737838560,-469.63934169,0.00016438,2]
[329840654,1718737838569,-500.0,0.00016438,2]
[329840655,1718737838579,-500.0,0.00016438,2]
[329840656,1718737838589,-500.0,0.00016438,2]
[329840657,1718737838598,-186.12007705,0.00016438,2]
[329840659,1718737839122,-313.87992295,0.00016438,2]
[329840661,1718737839132,-500.0,0.00016438,2]
[329840663,1718737839143,-500.0,0.00016438,2]
[329840664,1718737839153,-500.0,0.00016438,2]
[329840665,1718737839171,-500.0,0.00016438,2]
[329840666,1718737839184,-500.0,0.00016438,2]
[329840667,1718737839195,-500.0,0.00016438,2]
[329840668,1718737839205,-500.0,0.00016438,2]
[329840669,1718737839216,-500.0,0.00016438,2]
[329840670,1718737839226,-500.0,0.00016438,2]
[329840671,1718737839237,-500.0,0.00016438,2]
[329840672,1718737839247,-500.0,0.00016438,2]
[329840673,1718737839257,-500.0,0.00016438,2]
[329840674,1718737839268,-500.0,0.00016438,2]
[329840675,1718737839278,-500.0,0.00016438,2]
[329840676,1718737839288,-500.0,0.00016438,2]
[329840677,1718737839302,-500.0,0.00016438,2]
[329840678,1718737839313,-500.0,0.00016438,2]
[329840679,1718737839323,-500.0,0.00016438,2]
[329840680,1718737839334,-500.0,0.00016438,2]
[329840681,1718737839344,-513.23153849,0.00016438,2]
[329840682,1718737839354,-500.0,0.00016438,2]
[329840683,1718737839364,-500.0,0.00016438,2]
[329840684,1718737839374,-489.53403563,0.00016438,2]
[329840685,1718737839385,-500.0,0.00016438,2]
[329840686,1718737839395,-500.0,0.00016438,2]
[329840687,1718737839405,-500.0,0.00016438,2]
[329840688,1718737839416,-500.0,0.00016438,2]
[329840689,1718737839426,-201.36190086,0.00016438,2]
[329840690,1718737839436,-500.0,0.00016438,2]
[329840691,1718737839597,-500.0,0.00016438,2]
[329840692,1718737839613,-500.0,0.00016438,2]
[329840693,1718737839623,-500.0,0.00016438,2]
[329840694,1718737839633,-412.08274036,0.00016438,2]
[329840695,1718737839643,-500.0,0.00016438,2]
[329840696,1718737839652,-500.0,0.00016438,2]
[329840697,1718737839661,-500.0,0.00016438,2]
[329840698,1718737839670,-500.0,0.00016438,2]
[329840699,1718737839680,-500.0,0.00016438,2]
[329840700,1718737839689,-500.0,0.00016438,2]
[329840701,1718737839699,-500.0,0.00016438,2]
[329840702,1718737839708,-500.0,0.00016438,2]
[329840703,1718737839718,-6809.36,0.00016438,2]
[329840704,1718737839728,-500.0,0.00016438,2]
[329840705,1718737839737,-500.0,0.00016438,2]
[329840706,1718737839746,-500.0,0.00016438,2]
[329840707,1718737839756,-500.0,0.00016438,2]
[329840708,1718737839765,-500.0,0.00016438,2]
[329840709,1718737839774,-4105.17,0.00016438,2]
[329840710,1718737839783,-960.05,0.00016438,2]
[329840711,1718737839795,-500.0,0.00016438,2]
[329840712,1718737839803,-521.07,0.00016438,2]
[329840713,1718737839812,-500.0,0.00016438,2]
[329840714,1718737839822,-500.0,0.00016438,2]
[329840715,1718737839831,-500.0,0.00016438,2]
[329840716,1718737839840,-500.0,0.00016438,2]
[329840717,1718737839849,-500.0,0.00016438,2]
[329840718,1718737839859,-500.0,0.00016438,2]
[329840719,1718737839869,-500.0,0.00016438,2]
[329840720,1718737839879,-500.0,0.00016438,2]
[329840721,1718737839889,-304.26295673,0.00016438,2]
[329840722,1718737839902,-1337.87,0.00016438,2]
[329840723,1718737839913,-500.0,0.00016438,2]
[329840724,1718737839923,-500.0,0.00016438,2]
[329840725,1718737839932,-500.0,0.00016438,2]
[329840726,1718737839942,-250.0,0.00016438,2]
[329840727,1718737839952,-500.0,0.00016438,2]
[329840728,1718737839962,-500.0,0.00016438,2]
[329840729,1718737839975,-500.0,0.00016438,2]
[329840730,1718737839984,-500.0,0.00016438,2]
[329840731,1718737839994,-500.0,0.00016438,2]
[329840732,1718737840004,-500.0,0.00016438,2]
[329840733,1718737840014,-500.0,0.00016438,2]
[329840734,1718737840023,-500.0,0.00016438,2]
[329840735,1718737840034,-500.0,0.00016438,2]
[329840736,1718737840048,-500.0,0.00016438,2]
[329840737,1718737840058,-175.23945367,0.00016438,2]
[329840738,1718737840068,-500.0,0.00016438,2]
[329840739,1718737840079,-500.0,0.00016438,2]
[329840740,1718737840088,-500.0,0.00016438,2]
[329840741,1718737840098,-500.0,0.00016438,2]
[329840742,1718737840108,-500.0,0.00016438,2]
[329840743,1718737840118,-500.0,0.00016438,2]
[329840744,1718737840128,-500.0,0.00016438,2]
[329840745,1718737840139,-1044.0,0.00016438,2]
[329840746,1718737840149,-500.0,0.00016438,2]
[329840747,1718737840158,-500.0,0.00016438,2]
[329840748,1718737840169,-237.6,0.00016438,2]
[329840749,1718737840179,-500.0,0.00016438,2]
[329840750,1718737840188,-500.0,0.00016438,2]
[329840751,1718737840198,-500.0,0.00016438,2]
[329840752,1718737840208,-733.13,0.00016438,2]
[329840753,1718737840219,-500.0,0.00016438,2]
[329840754,1718737840229,-500.0,0.00016438,2]
[329840755,1718737840239,-500.0,0.00016438,2]
[329840756,1718737840249,-500.0,0.00016438,2]
[329840757,1718737840259,-644.3,0.00016438,2]
[329840758,1718737840270,-500.0,0.00016438,2]
[329840759,1718737840280,-500.0,0.00016438,2]
[329840760,1718737840290,-475.95954098,0.00016438,2]
[329840761,1718737840303,-500.0,0.00016438,2]
[329840762,1718737840314,-181.79417017,0.00016438,2]
[329840763,1718737840323,-500.0,0.00016438,2]
[329840764,1718737840333,-500.0,0.00016438,2]
[329840765,1718737840343,-500.0,0.00016438,2]
[329840766,1718737840352,-2068.84,0.00016438,2]
[329840767,1718737840362,-500.0,0.00016438,2]
[329840768,1718737840372,-254.19680779,0.00016681,2]
[329840769,1718737840382,-500.0,0.00016711,2]
[329840770,1718737840392,-500.0,0.00016711,2]
[329840771,1718737840402,-500.0,0.00016711,2]
[329840772,1718737840412,-500.0,0.00016711,2]
[329840773,1718737840422,-500.0,0.00016711,2]
[329840774,1718737840431,-500.0,0.00016711,2]
[329840775,1718737840441,-500.11757839,0.00016711,2]
[329840776,1718737840451,-500.0,0.00016712,2]
[329840777,1718737840460,-500.0,0.00016712,2]
[329840778,1718737840470,-500.0,0.00016712,2]
[329840779,1718737840480,-500.0,0.00016712,2]
[329840780,1718737840490,-500.0,0.00016712,2]
[329840781,1718737840499,-500.0,0.00016712,2]
[329840782,1718737840510,-500.0,0.00016712,2]
[329840783,1718737840520,-500.0,0.00016712,2]
[329840784,1718737840530,-500.0,0.00016712,2]
[329840785,1718737840539,-500.0,0.00016712,2]
[329840786,1718737840556,-500.0,0.00016712,2]
[329840787,1718737840566,-500.0,0.00016712,2]
[329840788,1718737840576,-500.0,0.00016712,2]
[329840789,1718737840586,-500.0,0.00016712,2]
[329840790,1718737840596,-500.0,0.00016712,2]
[329840791,1718737840606,-500.0,0.00016712,2]
[329840792,1718737840616,-500.0,0.00016712,2]
[329840793,1718737840625,-500.0,0.00016712,2]
[329840795,1718737840635,-500.0,0.00016712,2]
[329840797,1718737840644,-500.0,0.00016712,2]
[329840799,1718737840653,-500.0,0.00016712,2]
[329840800,1718737840663,-500.0,0.00016712,2]
[329840801,1718737840673,-500.0,0.00016712,2]
[329840802,1718737840683,-500.0,0.00016712,2]
[329840803,1718737840693,-500.0,0.00016712,2]
[329840804,1718737840702,-500.0,0.00016712,2]
[329840805,1718737840712,-500.0,0.00016712,2]
[329840806,1718737840721,-3471.7135547,0.00016712,2]
[329840810,1718737840788,-713.95701685,0.00016712,2]
[329840812,1718737840808,-302.0,0.00016712,2]
[329840813,1718737840819,-2321.68942845,0.00016712,2]
[329840814,1718737840829,-500.0,0.00016712,2]
[329840815,1718737840838,-501.32801034,0.00016712,2]
[329840816,1718737840848,-500.0,0.00016712,2]
[329840817,1718737840862,-500.0,0.00016712,2]
[329840818,1718737840881,-500.0,0.00016712,2]
[329840819,1718737840891,-4105.17,0.00016712,2]
[329840820,1718737840900,-960.05,0.00016712,2]
[329840821,1718737840911,-500.0,0.00016712,2]
[329840822,1718737840922,-521.07,0.00016712,2]
[329840823,1718737840932,-500.0,0.00016712,2]
[329840824,1718737840942,-500.0,0.00016712,2]
[329840825,1718737840954,-500.0,0.00016712,2]
[329840826,1718737840964,-500.0,0.00016712,2]
[329840827,1718737840973,-500.0,0.00016712,2]
[329840828,1718737840983,-500.0,0.00016712,2]
[329840829,1718737840992,-500.0,0.00016712,2]
[329840830,1718737841002,-500.0,0.00016712,2]
[329840831,1718737841012,-1337.87,0.00016712,2]
[329840832,1718737841021,-500.0,0.00016712,2]
[329840833,1718737841030,-500.0,0.00016712,2]
[329840834,1718737841041,-500.0,0.00016712,2]
[329840835,1718737841055,-250.0,0.00016712,2]
[329840836,1718737841065,-500.0,0.00016712,2]
[329840837,1718737841074,-500.0,0.00016712,2]
[329840838,1718737841084,-500.0,0.00016712,2]
[329840839,1718737841105,-500.0,0.00016712,2]
[329840840,1718737841118,-500.0,0.00016712,2]
[329840841,1718737841127,-308.03,0.00016712,2]
[329840842,1718737841138,-500.0,0.00016712,2]
[329840843,1718737841148,-500.0,0.00016712,2]
[329840844,1718737841157,-500.0,0.00016712,2]
[329840845,1718737841168,-500.0,0.00016712,2]
[329840846,1718737841178,-500.0,0.00016712,2]
[329840847,1718737841188,-500.0,0.00016712,2]
[329840848,1718737841198,-500.0,0.00016712,2]
[329840849,1718737841207,-1044.0,0.00016712,2]
[329840850,1718737841218,-500.0,0.00016712,2]
[329840851,1718737841227,-500.0,0.00016712,2]
[329840852,1718737841237,-500.0,0.00016712,2]
[329840853,1718737841247,-500.0,0.00016712,2]
[329840854,1718737841257,-733.13,0.00016712,2]
[329840855,1718737841266,-500.0,0.00016712,2]
[329840856,1718737841276,-500.0,0.00016712,2]
[329840857,1718737841286,-500.0,0.00016712,2]
[329840858,1718737841299,-500.0,0.00016712,2]
[329840859,1718737841309,-644.3,0.00016712,2]
[329840860,1718737841318,-500.0,0.00016712,2]
[329840861,1718737841328,-500.0,0.00016712,2]
[329840862,1718737841338,-500.0,0.00016712,2]
[329840863,1718737841347,-500.0,0.00016712,2]
[329840864,1718737841357,-2068.84,0.00016712,2]
[329840865,1718737841366,-500.0,0.00016985,2]
[329840866,1718737841385,-500.0,0.00016985,2]
[329840867,1718737841395,-401.24453925,0.00016985,2]
[329840868,1718737841405,-500.0,0.00016985,2]
[329840869,1718737841415,-500.0,0.00016985,2]
[329840870,1718737841424,-500.0,0.00016986,2]
[329840871,1718737841434,-500.0,0.00016986,2]
[329840872,1718737841444,-500.0,0.00016986,2]
[329840873,1718737841453,-500.0,0.00016986,2]
[329840874,1718737841463,-500.0,0.00016986,2]
[329840875,1718737841473,-500.0,0.00016986,2]
[329840876,1718737841483,-500.0,0.00016986,2]
[329840877,1718737841493,-500.0,0.00016986,2]
[329840878,1718737841502,-500.0,0.00016986,2]
[329840879,1718737841512,-500.0,0.00016986,2]
[329840880,1718737841522,-500.0,0.00016986,2]
[329840881,1718737841533,-500.0,0.00016986,2]
[329840882,1718737841545,-500.0,0.00016986,2]
[329840883,1718737841555,-500.0,0.00016986,2]
[329840884,1718737841565,-500.0,0.00016986,2]
[329840885,1718737841575,-500.0,0.00016986,2]
[329840886,1718737841586,-500.0,0.00016986,2]
[329840887,1718737841595,-500.0,0.00016986,2]
[329840888,1718737841605,-500.0,0.00016986,2]
[329840889,1718737841615,-500.0,0.00016986,2]
[329840890,1718737841624,-500.0,0.00016986,2]
[329840891,1718737841634,-500.0,0.00016986,2]
[329840892,1718737841644,-500.0,0.00016986,2]
[329840893,1718737841654,-500.0,0.00016986,2]
[329840894,1718737841665,-6809.36,0.00016986,2]
[329840895,1718737841675,-500.0,0.00016986,2]
[329840896,1718737841684,-500.0,0.00016986,2]
[329840897,1718737841694,-500.0,0.00016986,2]
[329840898,1718737841704,-4105.17,0.00016986,2]
[329840899,1718737841714,-960.05,0.00016986,2]
[329840900,1718737841723,-500.0,0.00016986,2]
[329840901,1718737841733,-521.07,0.00016986,2]
[329840902,1718737841742,-500.0,0.00016986,2]
[329840903,1718737841752,-500.0,0.00016986,2]
[329840904,1718737841763,-500.0,0.00016986,2]
[329840905,1718737841774,-500.0,0.00016986,2]
[329840906,1718737841784,-500.0,0.00016986,2]
[329840907,1718737841798,-500.0,0.00016986,2]
[329840908,1718737841807,-500.0,0.00016986,2]
[329840909,1718737841817,-500.0,0.00016986,2]
[329840910,1718737841826,-1337.87,0.00016986,2]
[329840911,1718737841836,-500.0,0.00016986,2]
[329840912,1718737841845,-500.0,0.00016986,2]
[329840913,1718737841854,-500.0,0.00016986,2]
[329840914,1718737841864,-380.30017938,0.00016986,2]
[329840915,1718737841874,-500.0,0.00016986,2]
[329840916,1718737841884,-500.0,0.00016986,2]
[329840917,1718737841897,-500.0,0.00016986,2]
[329840918,1718737841906,-500.0,0.00016986,2]
[329840919,1718737841917,-572.22867144,0.00016986,2]
[329840920,1718737841927,-232.61,0.00016986,2]
[329840921,1718737841936,-500.0,0.00016986,2]
[329840922,1718737841946,-500.0,0.00016986,2]
[329840923,1718737841956,-500.0,0.00016986,2]
[329840924,1718737841967,-500.0,0.00016986,2]
[329840925,1718737841978,-500.0,0.00016986,2]
[329840926,1718737841988,-1044.0,0.00016986,2]
[329840927,1718737841998,-500.0,0.00016986,2]
[329840928,1718737842007,-500.0,0.00016986,2]
[329840929,1718737842017,-500.0,0.00016986,2]
[329840930,1718737842027,-500.0,0.00016986,2]
[329840931,1718737842037,-733.13,0.00016986,2]
[329840932,1718737842051,-500.0,0.00016986,2]
[329840933,1718737842060,-500.0,0.00016986,2]
[329840934,1718737842070,-500.0,0.00016986,2]
[329840935,1718737842079,-644.3,0.00016986,2]
[329840936,1718737842089,-500.0,0.00016986,2]
[329840937,1718737842099,-500.0,0.00016986,2]
[329840938,1718737842109,-500.0,0.00016986,2]
[329840939,1718737842119,-500.0,0.00016986,2]
[329840940,1718737842129,-2068.84,0.00016986,2]
[329840941,1718737842139,-254.19680779,0.00017023,2]
[329840942,1718737842148,-500.0,0.00017258,2]
[329840943,1718737842159,-411.8565141,0.00017259,2]
[329840944,1718737842169,-500.0,0.00017259,2]
[329840945,1718737842178,-500.0,0.00017259,2]
[329840946,1718737842188,-1388.16862509,0.0001726,15]
[329840947,1718737842198,-514.13629635,0.0001726,2]
[329840948,1718737842208,-500.0,0.0001726,2]
[329840949,1718737842217,-477.3626576,0.0001726,2]
[329840950,1718737842228,-500.0,0.0001726,2]
[329840951,1718737842237,-500.0,0.0001726,2]
[329840952,1718737842247,-500.0,0.0001726,2]
[329840953,1718737842256,-500.0,0.0001726,2]
[329840954,1718737842266,-500.0,0.0001726,2]
[329840955,1718737842275,-500.0,0.0001726,2]
[329840956,1718737842285,-500.0,0.0001726,2]
[329840957,1718737842299,-500.0,0.0001726,2]
[329840958,1718737842309,-306.38468709,0.0001726,2]
[329840959,1718737842318,-500.0,0.0001726,2]
[329840960,1718737842328,-500.0,0.0001726,2]
[329840961,1718737842338,-500.0,0.0001726,2]
[329840962,1718737842347,-500.0,0.0001726,2]
[329840963,1718737842357,-500.0,0.0001726,2]
[329840964,1718737842367,-500.0,0.0001726,2]
[329840965,1718737842377,-500.0,0.0001726,2]
[329840966,1718737842386,-500.0,0.0001726,2]
[329840967,1718737842396,-6809.36,0.0001726,2]
[329840968,1718737842406,-500.0,0.0001726,2]
[329840969,1718737842415,-500.0,0.0001726,2]
[329840970,1718737842425,-500.0,0.0001726,2]
[329840971,1718737842434,-4105.17,0.0001726,2]
[329840972,1718737842444,-600.99449579,0.0001726,2]
[329840973,1718737842576,-359.05550421,0.0001726,2]
[329840974,1718737842598,-500.0,0.0001726,2]
[329840975,1718737842608,-521.07,0.0001726,2]
[329840976,1718737842617,-500.0,0.0001726,2]
[329840977,1718737842627,-500.0,0.0001726,2]
[329840978,1718737842636,-500.0,0.0001726,2]
[329840979,1718737842645,-237.96579198,0.0001726,2]
[329840980,1718737842655,-352.42729182,0.0001726,2]
[329840981,1718737842664,-500.0,0.0001726,2]
[329840982,1718737842674,-286.24853813,0.0001726,2]
[329840983,1718737842683,-1337.87,0.0001726,2]
[329840984,1718737842692,-500.0,0.0001726,2]